Cogmind - Beta 9 @@@ ROGUE MODE // 2019.10.28 @ 12:05:43 Player: MrPainting Result: Destroyed by L-31 Rogue with Katana Performance ------------- Evolutions (1) 500 Regions Visited (3) 600 Robots Destroyed (83) 415 Value Destroyed (1969) 1969 Prototype IDs (7) 140 Alien Tech Used (0) 0 Bonus (-302) -302 TOTAL SCORE: 3322 Bonus ------- High Alert Combat Kills 59 Friendly Fire -361 Cogmind --------- Core Integrity 0/400 Matter 300/300 Energy 230/280 System Corruption 0% Temperature Cool (60) Location -9/Storage Parts ------- Power (1) Cooled Ion Engine Propulsion (2) Light Treads Light Treads Utility (4) Cooling System High-capacity Storage Unit Improved Signal Interpreter Light Regenerative Plating Weapon (2) Advanced Beam Cannon Advanced Beam Cannon Inventory (12) Cooled Ion Engine Cooled Ion Engine Cooled Ion Engine Light Treads Light Treads High-capacity Matter Pod (200) High-capacity Matter Pod (200) Light Regenerative Plating Hacking Suite High-powered Tractor Beam Rocket Launcher Rocket Launcher Peak State ------------ Power Heavy Ion Engine Propulsion Light Treads Light Treads Utility Large Storage Unit Improved Signal Interpreter Light Regenerative Plating Light Regenerative Plating Weapon Improved Assault Rifle Improved Assault Rifle Inventory Improved Ion Engine Improved Ion Engine Cooling System High-capacity Matter Pod High-capacity Matter Pod Hacking Suite High-powered Tractor Beam Improved Medium Laser Rocket Launcher Rocket Launcher [Rating: 28] Favorites ----------- Power Ion Engine Engine Ion Engine Propulsion Light Treads Treads Light Treads Utility Light Regenerative Plating Device Cooling System Storage Large Storage Unit Processor Improved Signal Interpreter Hackware Hacking Suite Protection Light Regenerative Plating Weapon Improved Assault Rifle Energy Gun Heavy EM Pulse Gun Energy Cannon Advanced Beam Cannon Ballistic Gun Improved Assault Rifle Launcher Rocket Launcher Build | -11 -10 -9 -9 ------- Run | Scr Mat Mat Sto Slots Evolved 2 | . . 2 . Power . | . . . . Propulsion . | . . . . Utility 2 | . . 2 . Weapon . | . . . . Parts Attached 64 | 5 6 22 31 Power 5 | 1 . 2 2 Engine 5 | 1 . 2 2 Core . | . . . . Reactor . | . . . . Propulsion 18 | 2 . 6 10 Treads 18 | 2 . 6 10 Leg . | . . . . Wheel . | . . . . Hover . | . . . . Flight . | . . . . Utility 16 | . 3 7 6 Device 3 | . 1 1 1 Storage 4 | . 2 1 1 Processor 2 | . . 1 1 Hackware 1 | . . 1 . Protection 6 | . . 3 3 Artifact . | . . . . Weapon 25 | 2 3 7 13 Energy Gun 7 | . 3 2 2 Energy Cannon 6 | . . 2 4 Ballistic Gun 10 | 2 . 3 5 Ballistic Cannon . | . . . . Launcher 2 | . . . 2 Special Weapon . | . . . . Impact Weapon . | . . . . Slashing Weapon . | . . . . Piercing Weapon . | . . . . Special Melee Weapon . | . . . . Unidentified Prototypes 7 | . . . 7 Parts Lost 8 | . . 6 2 Power . | . . . . Propulsion 1 | . . 1 . Utility 3 | . . 2 1 Weapon 4 | . . 3 1 Highest Loss Streak 1 | . . 1 1 Average Slot Usage (%) 96 | . 89 94 99 Engine 11 | . 14 11 11 Treads 22 | . 28 21 22 Device 7 | . 6 13 4 Storage 11 | . 11 12 11 Processor 6 | . . 2 11 Hackware 1 | . . 5 . Protection 11 | . . 6 17 Energy Gun 5 | . 12 11 . Energy Cannon 6 | . . 4 8 Ballistic Gun 10 | . 15 5 12 Naked Turns . | . . . . Heaviest Build 54 | 9 17 38 54 Greatest Support 40 | 40 40 40 40 Greatest Overweight (x) 1 | . . 1 1 Average Overweight (x) . | . . . . Largest Inventory Capacity 12 | 4 6 10 12 Average Capacity 8 | 4 4 6 10 Most Carried 12 | 4 6 10 12 Average Carried 7 | 1 3 5 10 Final Capacity 12 | . . . 12 Final Carried 12 | . . . 12 Class Distribution -------------------- 86% | Mutant 13% | Scavenger-Mutant Dominant Class ---------------- Mutant | -10/Materials Mutant | -9/Materials Mutant | -9/Storage Resources | -11 -10 -9 -9 ----------- Run | Scr Mat Mat Sto Matter Collected 1752 | 250 191 619 692 Remotely 263 | . . 263 . Salvage Created 2938 | . 191 1118 1629 Parts 199 | . 9 82 108 Haulers Intercepted 6 | . . 1 5 Recyclers Shooed 1 | . . . 1 Parts Field Recycled . | . . . . Retrieved Matter . | . . . . Parts Self-Destructed . | . . . . Prevented . | . . . . Kills | -11 -10 -9 -9 ------- Run | Scr Mat Mat Sto Combat Hostiles Destroyed 56 | . 3 21 32 Guns 31 | . 3 10 18 Cannons 22 | . . 9 13 AOE 3 | . . 2 1 Classes Destroyed 10 | . 2 7 1 Worker 9 | . . 3 6 Hauler 6 | . . 1 5 Recycler 3 | . 1 1 1 Operator 3 | . . 2 1 Drone 3 | . . . 3 Watcher 3 | . . 2 1 Swarmer 13 | . . 4 9 Grunt 25 | . 3 11 11 Brawler 1 | . . 1 . Sentry 17 | . . 5 12 Best Kill Streak 12 | . 2 6 12 Combat Bots Only 6 | . 2 5 6 Max Kills in Single Turn 2 | . 1 2 2 Gunslinging 1 | . . 1 1 Exploded 2 | . . 2 1 Melee . | . . . . Uniques/NPCs Destroyed . | . . . . Combat | -11 -10 -9 -9 -------- Run | Scr Mat Mat Sto Damage Taken 2681 | . 87 990 1604 Core 401 | . . 173 228 Absorbed by Shields . | . . . . Core Remaining (%) 100 | 100 100 . . Volleys Fired 188 | . 19 70 99 Largest 2 | . 2 2 2 Hottest 136 | . 90 113 136 Shots Fired 356 | . 38 134 184 Gun 231 | . 38 99 94 Cannon 119 | . . 35 84 Launcher 6 | . . . 6 Special . | . . . . Kinetic 149 | . 14 41 94 Thermal 111 | . . 27 84 Explosive 6 | . . . 6 Electromagnetic 90 | . 24 66 . Robot Hit Streak 20 | . 4 10 20 Robot Miss Streak 6 | . 6 3 5 Penetration Max . | . . . . Secondary Targets 7 | . 1 1 5 Max Gunslinging Chain 1 | . 1 1 1 Shots Hit Robots 220 | . 14 88 118 Core Hits 106 | . 5 36 65 Critical Hits 10 | . . 1 9 Critical Kills 2 | . . . 2 Critical Parts Destroyed 8 | . . 1 7 Melee Attacks . | . . . . Impact . | . . . . Slashing . | . . . . Piercing . | . . . . Sneak Attacks . | . . . . Combat Hostiles . | . . . . Follow-up Attacks . | . . . . Damage Inflicted 4154 | . 185 1650 2319 Guns 2082 | . 185 922 975 Cannons 1743 | . . 551 1192 Explosions 329 | . . 177 152 Melee . | . . . . Ramming . | . . . . Kinetic 1374 | . 75 324 975 Thermal 1823 | . . 631 1192 Explosive 152 | . . . 152 Electromagnetic 805 | . 110 695 . Impact . | . . . . Slashing . | . . . . Piercing . | . . . . Highest Corruption . | . . . . Average Corruption . | . . . . Corruption Purged . | . . . . Overload Shots . | . . . . Overflow Damage 17 | . . 16 1 Projectiles 1 | . . . 1 Explosions 16 | . . 16 . Melee . | . . . . Knockbacks . | . . . . Impact . | . . . . Kinetic . | . . . . Secondary . | . . . . Self-Inflicted Damage 93 | . . 64 29 Shots 3 | . . 2 1 Rammed . | . . . . Targets Rammed . | . . . . Kicked . | . . . . Crushed . | . . . . Highest Temperature 356 | . . 18 356 Average Temperature 51 | . . 7 52 Received Heat Transfer 798 | . 48 324 426 Effects 1 | . . . 1 Short Circuit 1 | . . . 1 Siege Activations . | . . . . Robots Corrupted . | . . . . Combat Hostiles . | . . . . Parts Fried 1 | . . 1 . Impact Corruptions . | . . . . Robots Melted . | . . . . Combat Hostiles . | . . . . Parts Melted 5 | . . 2 3 Heat Transferred 3160 | . . 1014 2146 Parts Sabotaged . | . . . . Parts Stolen . | . . . . Parts Stripped . | . . . . Power Chain Reactions 2 | . . 2 . Missiles Intercepted . | . . . . Alert | -11 -10 -9 -9 ------- Run | Scr Mat Mat Sto Peak Influence 504 | . 105 353 504 Average Influence 192 | . 45 176 249 Maximum Alert Level 2 | . . 1 2 Low Security (%) 53 | . . . . Level 1 37 | . . . . Level 2 8 | . . . . Level 3 . | . . . . Level 4 . | . . . . Level 5 . | . . . . High Security . | . . . . Max Security . | . . . . Squads Dispatched 14 | . 2 5 7 Investigation 4 | . 1 2 1 Extermination . | . . . . Reinforcement 7 | . 1 3 3 Assault . | . . . . Garrison 3 | . . . 3 Intercept . | . . . . Construction Impeded . | . . . . Haulers Reinforced . | . . . . Stealth | -11 -10 -9 -9 --------- Run | Scr Mat Mat Sto Distress Signals 7 | . . 4 3 Communications Jammed . | . . . . Distress Signals . | . . . . Times Spotted 88 | . 6 42 40 Peak Tracking Total 8 | . 2 8 5 Tactical Retreats 8 | . . 7 1 Traps | -11 -10 -9 -9 ------- Run | Scr Mat Mat Sto Traps Triggered 3 | . . . 3 Indirectly . | . . . . Trap Hack Attempts . | . . . . Triggered . | . . . . Disarmed . | . . . . Reprogrammed . | . . . . Reused . | . . . . Traps Extracted . | . . . . Installed . | . . . . Triggered 1 | . 1 . . Machines | -11 -10 -9 -9 ---------- Run | Scr Mat Mat Sto Machines Disabled 4 | . . 2 2 Max in Single Turn 1 | . . 1 1 Machines Sabotaged . | . . . . Garrisons Compromised . | . . . . Overloaded Fab Kills . | . . . . Fab Network Shutdowns . | . . . . Hacking | -11 -10 -9 -9 --------- Run | Scr Mat Mat Sto Machines Accessed 11 | . 1 4 6 Terminals 8 | . 1 3 4 Fabricators . | . . . . Repair Stations 1 | . . . 1 Recycling Units 2 | . . 1 1 Scanalyzers . | . . . . Garrison Access . | . . . . Total Hacks 33 | . 3 16 14 Successful 16 | . 1 8 7 Failed 17 | . 2 8 7 Catastrophic 2 | . . 2 . Database Lockouts . | . . . . Manual 24 | . 3 13 8 Terminals 27 | . 3 14 10 Fabricators . | . . . . Repair Stations 3 | . . . 3 Recycling Units 3 | . . 2 1 Scanalyzers . | . . . . Garrison Access . | . . . . Terminal Hacks 7 | . . 4 3 Open Door 1 | . . . 1 Alert Level 3 | . . 2 1 Unreport Threat 2 | . . 1 1 Zone Layout 1 | . . 1 . Fabricator Hacks . | . . . . Repair Station Hacks 1 | . . . 1 Scan Component 1 | . . . 1 Recycling Unit Hacks 2 | . . 1 1 Report Inventory 1 | . . . 1 Retrieve Components 1 | . . 1 . Scanalyzer . | . . . . Garrison Access Hacks . | . . . . Unauthorized Hacks 16 | . 4 8 4 Terminals 6 | . 1 3 2 Track 1 | . . 1 . Botnet 5 | . 1 2 2 Fabricators . | . . . . Repair Stations . | . . . . Recycling Units . | . . . . Scanalyzers . | . . . . Garrison Access . | . . . . Data Cores Recovered . | . . . . Used . | . . . . Hacking Detections 9 | . 1 4 4 Full Trace Events 1 | . . 1 . Feedback Events . | . . . . Feedback Blocked . | . . . . Robot Schematics Acquired . | . . . . Robots Built . | . . . . Matter . | . . . . Time . | . . . . Total Robot Build Rating . | . . . . Part Schematics Acquired . | . . . . Parts Built . | . . . . Matter . | . . . . Time . | . . . . Total Part Build Rating . | . . . . Parts Repaired . | . . . . Time . | . . . . Parts Recycled . | . . . . Recycled Matter . | . . . . Retrieved Matter . | . . . . Retrieved Components 1 | . . 1 . Parts Scanalyzed . | . . . . Part Schematics Acquired . | . . . . Parts Damaged . | . . . . Bothacking | -11 -10 -9 -9 ------------ Run | Scr Mat Mat Sto Used RIF Installer . | . . . . Robots Hacked . | . . . . Non-combat . | . . . . Combat . | . . . . Robot Hacks Applied . | . . . . Relay Couplers Released . | . . . . Robots Rewired . | . . . . Allies Hacked . | . . . . Hacks Repelled . | . . . . Allies | -11 -10 -9 -9 -------- Run | Scr Mat Mat Sto Total Allies . | . . . . Largest Group . | . . . . Highest-Rated Group . | . . . . Highest-Rated Ally . | . . . . Total Orders . | . . . . Ally Attacks . | . . . . Total Damage . | . . . . Kills . | . . . . Allies Corrupted . | . . . . Allies Melted . | . . . . Intel | -11 -10 -9 -9 ------- Run | Scr Mat Mat Sto Robot Analysis Total . | . . . . Derelict Logs Recovered . | . . . . Drone Launches 16 | . . . 16 Drone Recoveries . | . . . . Exploration | -11 -10 -9 -9 ------------- Run | Scr Mat Mat Sto Turns Passed 2840 | 54 392 935 1459 Spaces Moved 1293 | 33 194 418 648 Core 8 | 8 . . . Treads 1285 | 25 194 418 648 Legs . | . . . . Wheels . | . . . . Hover . | . . . . Flight . | . . . . Fastest Speed 50 | 50 160 160 160 Average Speed 161 | 133 160 160 163 Slowest Speed 180 | 160 160 180 180 Overloaded Moves . | . . . . Propulsion Burnouts . | . . . . Robots Hopped . | . . . . Cave-ins Triggered . | . . . . Exploration Rate (%) 41 | 3 33 46 83 Regions Visited 3 Branch Regions 1 Pre-discovered Areas . | . . . . Known Exits Taken 1 | . . 1 . Unknown Exits Taken 2 | 1 1 . . Scrap Searched . | . . . . Spaces Dug . | . . . . Terrain Destroyed 46 | . . 4 42 Melee . | . . . . Projectile . | . . . . AOE 46 | . . 4 42 Actions | -11 -10 -9 -9 --------- Run | Scr Mat Mat Sto Total 1701 | 43 239 548 871 Wait 59 | . 8 10 41 Move 1290 | 32 193 417 648 Hop . | . . . . Pick Up 45 | 6 8 16 15 Fast Attach 16 | 1 . 6 9 Attach 14 | 4 2 4 4 Detach 4 | . . . 4 Swap 34 | . 4 12 18 Drop 43 | . 5 13 25 Fire 188 | . 19 70 99 Melee . | . . . . Ram . | . . . . Kick . | . . . . Crush . | . . . . Escape Stasis . | . . . . Rewire . | . . . . Trap . | . . . . Miscellaneous 8 | . . . 8 Route ------- -11/Scrapyard -10/Materials -9/Materials (discovered 3 exits: [Mat] / [*Min] / *Sto) -9/Storage (discovered 1 exit: [*Mat]) History --------- Turn | Location | Event 7 | -11/Scrapyard | Discovered new exit (range 16) 55 | -11/Scrapyard | Entered Materials 334 | -10/Materials | Build established: Mutant 407 | -10/Materials | Discovered new exit (range 7) 447 | -10/Materials | Entered another Materials area 447 | -9/Materials | Evolved 2 slots: Utility x2 833 | -9/Materials | Discovered new exit (range 11) 1014 | -9/Materials | Discovered new exit (range 8) 1355 | -9/Materials | Discovered new exit (range 6) 1376 | -9/Materials | Identified exit to Storage 1382 | -9/Materials | Entered Storage 1416 | -9/Storage | Found Prototype Protection 1417 | -9/Storage | Identified Lgt. Regenerative Plating 1420 | -9/Storage | Found Lgt. Regenerative Plating 1464 | -9/Storage | Build established: Scavenger-Mutant 1745 | -9/Storage | Core integrity fell below 50% 1837 | -9/Storage | Build established: Mutant 2068 | -9/Storage | Discovered new exit (range 7) 2213 | -9/Storage | Garrison activated, responded to threat 2675 | -9/Storage | Core integrity fell below 20% 2841 | -9/Storage | Destroyed by L-31 Rogue with Katana Last Messages --------------- 02794_ Aluminum Leg melted. 02794_ G-34 Mercenary destroyed. 02795_ K-01 Serf collects debris. 02809_ Drone destroyed. 02810_ K-01 Serf collects debris. 02811_ Drone destroyed. 02813_ K-01 Serf collects debris. 02816_ G-34 Mercenary destroyed. 02819_ K-01 Serf collects debris. 02827_ L-31 Rogue suffers critical hit. 02827_ Destroyed Imp. Ion Engine. 02831_ K-01 Serf collects debris. 02832_ L-31 Rogue heat short circuits Imp. Aluminum Leg. 02833_ Drone destroyed. 02835_ K-01 Serf collects debris. 02839_ L-31 Rogue suffers critical hit. 02839_ Destroyed Imp. Aluminum Leg. 02841_ L-31 Rogue heat damages Imp. Aluminum Leg, Katana, Core Shielding, Melee Analysis Suite. [Achievement: Achiever] Map ----- +----------------------------------------------------+ | ???????### #???????## # "" | | ???##### ## """"" #???????########### "T | | ?# # """"" #???????## # "" | | ?# """ # """"" #??????? # # | | ?# """ #+###+######+########## # | | ?# """ # ## # | | ?# + ##% # | | ?# """ # # +% """ | | ?# """ ### ################### # """ | | ?# """ #?# #??????????????# # # """ | | ?# #?# #??????????????## # % # | | ???########?# #???????????????# ##+####### | | ????????????#[#???????????????## #%#?????# """ | | ????????????#o#?????????????????## #?????# """ | | ????????????#%#??????????????????# ###???# """ | | ????????????#*#################### + "???# | | ????????????#%%*!= =%*%! %%=% #T#???# | | ??????#####?#***%! =[ = [[% [#?????# ####+ | | ??????#"""#?#]== % %**%! ===[%####### #???? | | ?????##"T"### * [ ==%*[n!%! m #???? | | ?????# # %#####/####### #???? | | ???#?#""" # #?# =!! #??# #???? | | ??? #""" + #?# """ ""#? ????? | | ???# #""" # ########%n% #?#] """ T"#? ????? | | ???# #[*! !# #??????#kl #?# """ ""#????????? | | ???# #!%= # #?????##@##+### ###????????? | | ???# # ######= #?????#%n! ## #??????????? | | ???# ########%* #######[n* ###" "# #??????????? | | ???+ ![! [%+[[ #?#"G"###??????????? | | ???# ######n##########[ #?#"""?????????????? | | #### #????# #????????# #??###?????????????? | | # #????# #????????# #??????????????????? | | # ######+####????##########?????????????????? | | # ## #????# #?????????????????? | | # ##] #????# """ #?????????????????? | | # ## #????# """ #?????????????????? | | # ## #????# """ #?????????????????? | | #+##+# ## #????# #?????????????????? | | # ## ! #????# """ #?????????????????? | | # ##! [#???##[""" ! #?????????????????? | | + ## #???#*!""" #?????????????????? | | # ## #???##!%=% #?????????????????? | | # ######+############+############### #??## | | ?# /!%!/ % % % | | ####?####!##/ % % | | ?????# ! # = | | ?????# #######+#########################?##### | | ????? # ####### #????????????????????????????? | | ????# ???##!!!!# #????????????????????????????? | | ????####????# #????????????????????????????? | +----------------------------------------------------+ Best States ------------- Heat Dissipation 50 Energy Generation 14 Energy Capacity 280 Matter Stores 500 Matter Capacity 500 Sight Range 16 Terrain Scan Density 10 Armor Coverage 300 Evasion (%) 50 Recoil Reduction 2 Offensive Hacking 10 Item Schematics ----------------- None Robot Schematics ------------------ None Fabricated ------------ Nothing Alien Tech Used ----------------- None Achievements -------------- Achiever Release The Drones! Challenges ------------ None Game ------ Seed FactorySiegeAutogun Manual? 0 Play Time 00:32:18 Cumulative 39.6 hours Start 2019.10.28 @ 11:35:24 End 2019.10.28 @ 12:05:43 Sessions 1 Manual Loads 0 Difficulty Rogue Special Mode None Game No. 62 Rogue 62 Adventurer 0 Explorer 0 Win Type - Total 0 Types 0/0/0/0/0/0/0 Lore% 27 Gallery% 32 Achievement% 25 Wizard Run 0 Options --------- ASCII 0 Keyboard 0 Movement Mouse Keybinds 0 Fullscreen 1 Font 18/SmallcapsGlow Map View 76x50 Tactical HUD 1 Map Filters NONE Filters NONE Steam 1 RUN: 64587d4d-a6ef-49db-8995-3a6d111f8ade